Cogmind - Beta 10.2 @@@ ROGUE MODE // 2022.02.22 @ 18:09:40 Player: mogwok Result: Destroyed by S-10 Pest with Light Assault Rifle Performance ------------- Evolutions (1) 500 Regions Visited (3) 600 Robots Destroyed (13) 65 Value Destroyed (213) 213 Prototype IDs (1) 20 Alien Tech Used (0) 0 Bonus (0) 0 TOTAL SCORE: 1398 Bonus ------- None Cogmind --------- Core Integrity 0/400 Matter 253/300 Energy 123/125 System Corruption 2% Temperature Cool (0) Movement Core (50) Location -9/Storage Parts ------- > --- POWER (1) -------- Light Ion Engine > --- PROPULSION (3) --- (None) > --- UTILITY (3) ------ (None) > --- WEAPON (2) ------- (None) > --- INVENTORY (4) ---- Light Ion Engine Light Ion Engine Light Ion Engine Peak State ------------ > --- POWER ------------ Light Ion Engine > --- PROPULSION ------- Flight Unit Flight Unit Flight Unit > --- UTILITY ---------- Targeting Computer > --- WEAPON ----------- Beam Cannon Light Assault Rifle > --- INVENTORY -------- Light Ion Engine Flight Unit Flight Unit EMP Blaster [Rating: 7] Favorites ----------- Power Light Ion Engine Engine Light Ion Engine Propulsion Flight Unit Wheel Wheel Flight Unit Flight Unit Utility Small Storage Unit Device ECM Suite Storage Small Storage Unit Processor Targeting Computer Weapon Light Assault Rifle Energy Gun Small Laser Energy Cannon Beam Cannon Ballistic Gun Light Assault Rifle Launcher EMP Blaster Build | -11 -10 -9 -9 ------- Run | Scr Mat Mat Sto Slots Evolved 2 | . . 2 . Power . | . . . . Propulsion 1 | . . 1 . Utility 1 | . . 1 . Weapon . | . . . . Parts Attached 25 | 6 6 12 1 Power 4 | 1 1 1 1 Engine 4 | 1 1 1 1 Core . | . . . . Reactor . | . . . . Propulsion 9 | 2 2 5 . Treads . | . . . . Leg . | . . . . Wheel 2 | 2 . . . Hover . | . . . . Flight 7 | . 2 5 . Utility 4 | 1 1 2 . Device 2 | . 1 1 . Storage 1 | 1 . . . Processor 1 | . . 1 . Hackware . | . . . . Protection . | . . . . Artifact . | . . . . Weapon 8 | 2 2 4 . Energy Gun 2 | 1 . 1 . Energy Cannon 2 | . 1 1 . Ballistic Gun 3 | 1 1 1 . Ballistic Cannon . | . . . . Launcher 1 | . . 1 . Special Weapon . | . . . . Impact Weapon . | . . . . Slashing Weapon . | . . . . Piercing Weapon . | . . . . Special Melee Weapon . | . . . . Unidentified Prototypes 1 | . . 1 . Parts Lost 15 | . 1 14 . Power 2 | . . 2 . Propulsion 6 | . . 6 . Utility 3 | . 1 2 . Weapon 4 | . . 4 . Highest Loss Streak 11 | . 1 11 . Average Slot Usage (%) 66 | . 78 53 7 Engine 11 | . 13 8 7 Wheel 7 | . 11 . . Flight 17 | . 15 23 . Storage 4 | . 7 . . Processor 1 | . . 2 . Energy Gun 4 | . 7 . . Energy Cannon 6 | . 6 6 . Ballistic Gun 12 | . 14 10 . Naked Turns 20 | . . 8 12 Heaviest Build 11 | 11 11 8 3 Greatest Support 12 | 10 10 12 3 Greatest Overweight (x) 2 | 1 2 1 . Average Overweight (x) . | . . . . Largest Inventory Capacity 6 | 6 6 4 4 Average Capacity 4 | 5 5 4 4 Most Carried 6 | 4 6 4 3 Average Carried 3 | 2 4 3 2 Final Capacity 6 | 6 4 4 4 Final Carried 4 | 4 4 1 3 Class Distribution -------------------- 81% | Mutant 18% | Scavenger-Mutant Dominant Class ---------------- Mutant | -10/Materials Scavenger-Mutant | -9/Materials Mutant | -9/Storage Resources | -11 -10 -9 -9 ----------- Run | Scr Mat Mat Sto Matter Collected 386 | 185 91 110 . Remotely . | . . . . Salvage Created 306 | . 91 215 . Parts 22 | . 6 16 . Haulers Intercepted . | . . . . Recyclers Shooed . | . . . . Parts Field Recycled . | . . . . Retrieved Matter . | . . . . Parts Self-Destructed . | . . . . Prevented . | . . . . Kills | -11 -10 -9 -9 ------- Run | Scr Mat Mat Sto Combat Hostiles Destroyed 13 | . 4 9 . Guns 11 | . 4 7 . Cannons 2 | . . 2 . Classes Destroyed 3 | . 2 1 . Swarmer 10 | . 3 7 . Grunt 2 | . 1 1 . Sentry 1 | . . 1 . Best Kill Streak 5 | . 3 5 . Combat Bots Only 5 | . 3 5 . Max Kills in Single Turn 2 | . 1 2 . Gunslinging . | . . . . Exploded . | . . . . Melee . | . . . . Uniques/NPCs Destroyed . | . . . . Combat | -11 -10 -9 -9 -------- Run | Scr Mat Mat Sto Damage Taken 1221 | . 232 974 15 Core 445 | . 40 390 15 Absorbed by Shields . | . . . . Core Remaining (%) 92 | 100 84 . . Volleys Fired 31 | . 6 25 . Largest 2 | . 2 2 . Hottest 80 | . 60 80 . Shots Fired 54 | . 12 42 . Gun 40 | . 12 28 . Cannon 14 | . . 14 . Launcher . | . . . . Special . | . . . . Kinetic 30 | . 6 24 . Thermal 24 | . 6 18 . Explosive . | . . . . Electromagnetic . | . . . . Robot Hit Streak 5 | . 4 5 . Robot Miss Streak 5 | . 1 5 . Penetration Max . | . . . . Secondary Targets 2 | . 1 1 . Max Gunslinging Chain 1 | . 1 1 . Shots Hit Robots 26 | . 8 18 . Core Hits 17 | . 6 11 . Critical Hits 1 | . 1 . . Critical Kills . | . . . . Critical Parts Destroyed 1 | . 1 . . Melee Attacks . | . . . . Impact . | . . . . Slashing . | . . . . Piercing . | . . . . Sneak Attacks . | . . . . Combat Hostiles . | . . . . Follow-up Attacks . | . . . . Damage Inflicted 361 | . 81 280 . Guns 251 | . 81 170 . Cannons 105 | . . 105 . Explosions . | . . . . Melee . | . . . . Ramming 5 | . . 5 . Kinetic 170 | . 34 136 . Thermal 186 | . 47 139 . Explosive . | . . . . Electromagnetic . | . . . . Impact . | . . . . Slashing . | . . . . Piercing . | . . . . Highest Corruption 3 | . 3 . 2 Average Corruption 2 | . 2 . 1 Corruption Purged . | . . . . Effects 8 | . 7 . 1 Message Errors 4 | . 3 . 1 Matter Fused 2 | . 2 . . Heat Flow Errors 1 | . 1 . . Targeting Errors 1 | . 1 . . Overload Shots . | . . . . Overflow Damage . | . . . . Projectiles . | . . . . Explosions . | . . . . Melee . | . . . . Knockbacks . | . . . . Impact . | . . . . Kinetic . | . . . . Secondary . | . . . . Self-Inflicted Damage 2 | . . 2 . Shots . | . . . . Rammed 2 | . . 2 . Targets Rammed 2 | . . 2 . Kicked . | . . . . Crushed . | . . . . Highest Temperature 237 | . 237 189 . Average Temperature 80 | . 79 81 . Received Heat Transfer 417 | . 90 327 . Effects 2 | . 2 . . Interference 2 | . 2 . . Siege Activations . | . . . . Robots Corrupted . | . . . . Combat Hostiles . | . . . . Parts Fried . | . . . . Impact Corruptions . | . . . . Robots Melted . | . . . . Combat Hostiles . | . . . . Parts Melted . | . . . . Heat Transferred 396 | . 100 296 . Parts Sabotaged . | . . . . Parts Stolen . | . . . . Parts Stripped . | . . . . Power Chain Reactions . | . . . . Missiles Intercepted . | . . . . Alert | -11 -10 -9 -9 ------- Run | Scr Mat Mat Sto Peak Influence 262 | . 120 262 106 Initial 91 | . . 12 91 Average 80 | . 47 149 91 Maximum Alert Level 1 | . . 1 . Low Security (%) 87 | 100 100 62 100 Level 1 12 | . . 37 . Level 2 . | . . . . Level 3 . | . . . . Level 4 . | . . . . Level 5 . | . . . . High Security . | . . . . Max Security . | . . . . Squads Dispatched 3 | . 2 1 . Investigation 1 | . 1 . . Extermination . | . . . . Reinforcement 2 | . 1 1 . Assault . | . . . . Garrison . | . . . . Intercept . | . . . . Construction Impeded . | . . . . Haulers Reinforced . | . . . . Stealth | -11 -10 -9 -9 --------- Run | Scr Mat Mat Sto Distress Signals 4 | . 2 2 . Communications Jammed . | . . . . Distress Signals . | . . . . Times Spotted 33 | . 11 20 2 Peak Tracking Total 8 | . 8 8 8 Tactical Retreats 2 | . . 2 . Traps | -11 -10 -9 -9 ------- Run | Scr Mat Mat Sto Traps Triggered 5 | . 3 . 2 Indirectly . | . . . . Trap Hack Attempts . | . . . . Triggered . | . . . . Disarmed . | . . . . Reprogrammed . | . . . . Reused . | . . . . Traps Extracted . | . . . . Installed . | . . . . Triggered . | . . . . Machines | -11 -10 -9 -9 ---------- Run | Scr Mat Mat Sto Machines Disabled . | . . . . Max in Single Turn . | . . . . Machines Sabotaged . | . . . . Garrisons Compromised . | . . . . Overloaded Fab Kills . | . . . . Fab Network Shutdowns . | . . . . Hacking | -11 -10 -9 -9 --------- Run | Scr Mat Mat Sto Machines Accessed 2 | . 1 . 1 Terminals 1 | . 1 . . Fabricators . | . . . . Repair Stations . | . . . . Recycling Units 1 | . . . 1 Scanalyzers . | . . . . Garrison Access . | . . . . Total Hacks 2 | . 1 . 1 Successful 2 | . 1 . 1 Failed . | . . . . Catastrophic . | . . . . Database Lockouts . | . . . . Manual . | . . . . Terminals 1 | . 1 . . Fabricators . | . . . . Repair Stations . | . . . . Recycling Units 1 | . . . 1 Scanalyzers . | . . . . Garrison Access . | . . . . Terminal Hacks 1 | . 1 . . Record 1 | . 1 . . Fabricator Hacks . | . . . . Repair Station Hacks . | . . . . Recycling Unit Hacks 1 | . . . 1 Report Inventory 1 | . . . 1 Scanalyzer . | . . . . Garrison Access Hacks . | . . . . Unauthorized Hacks . | . . . . Terminals . | . . . . Fabricators . | . . . . Repair Stations . | . . . . Recycling Units . | . . . . Scanalyzers . | . . . . Garrison Access . | . . . . Data Cores Recovered . | . . . . Used . | . . . . Hacking Detections 1 | . 1 . . Full Trace Events . | . . . . Feedback Events . | . . . . Feedback Blocked . | . . . . Robot Schematics Acquired . | . . . . Robots Built . | . . . . Matter . | . . . . Time . | . . . . Total Robot Build Rating . | . . . . Part Schematics Acquired . | . . . . Parts Built . | . . . . Matter . | . . . . Time . | . . . . Total Part Build Rating . | . . . . Parts Repaired . | . . . . Time . | . . . . Parts Recycled . | . . . . Recycled Matter . | . . . . Retrieved Matter . | . . . . Retrieved Components . | . . . . Parts Scanalyzed . | . . . . Part Schematics Acquired . | . . . . Parts Damaged . | . . . . Bothacking | -11 -10 -9 -9 ------------ Run | Scr Mat Mat Sto Used RIF Installer . | . . . . Robots Hacked . | . . . . Non-combat . | . . . . Combat . | . . . . Robot Hacks Applied . | . . . . Relay Couplers Released . | . . . . Robots Rewired . | . . . . Allies Hacked . | . . . . Hacks Repelled . | . . . . Allies | -11 -10 -9 -9 -------- Run | Scr Mat Mat Sto Total Allies . | . . . . Largest Group . | . . . . Highest-Rated Group . | . . . . Highest-Rated Ally . | . . . . Total Orders . | . . . . Ally Attacks . | . . . . Total Damage . | . . . . Kills . | . . . . Allies Corrupted . | . . . . Allies Melted . | . . . . Intel | -11 -10 -9 -9 ------- Run | Scr Mat Mat Sto Robot Analysis Total . | . . . . Derelict Logs Recovered . | . . . . Drone Launches . | . . . . Drone Recoveries . | . . . . Exploration | -11 -10 -9 -9 ------------- Run | Scr Mat Mat Sto Turns Passed 868 | 67 471 296 34 Spaces Moved 1226 | 63 693 409 61 Core 97 | 1 . 35 61 Treads . | . . . . Legs . | . . . . Wheels 258 | 62 196 . . Hover . | . . . . Flight 871 | . 497 374 . Fastest Speed 34 | 50 37 34 50 Average Speed 54 | 86 58 45 50 Slowest Speed 200 | 90 200 120 50 Overloaded Moves . | . . . . Propulsion Burnouts . | . . . . Robots Hopped 24 | . 19 5 . Cave-ins Triggered . | . . . . Exploration Rate (%) 24 | 3 56 25 12 Regions Visited 3 Branch Regions 1 Pre-discovered Areas . | . . . . Known Exits Taken . | . . . . Unknown Exits Taken 3 | 1 1 1 . Scrap Searched . | . . . . Spaces Dug . | . . . . Terrain Destroyed . | . . . . Melee . | . . . . Projectile . | . . . . AOE . | . . . . Terrain Rammed . | . . . . Walls Destroyed . | . . . . Machines Disabled . | . . . . Actions | -11 -10 -9 -9 --------- Run | Scr Mat Mat Sto Total 1346 | 72 736 474 64 Wait 52 | . 31 21 . Move 1177 | 62 655 399 61 Hop 22 | . 18 4 . Pick Up 16 | 4 6 4 2 Fast Attach 18 | 6 3 8 1 Attach 7 | . 3 4 . Detach 6 | . 5 1 . Swap . | . . . . Drop 15 | . 9 6 . Fire 31 | . 6 25 . Melee . | . . . . Ram 2 | . . 2 . Kick . | . . . . Crush . | . . . . Escape Stasis . | . . . . Rewire . | . . . . Trap . | . . . . Miscellaneous . | . . . . Route ------- -11/Scrapyard -10/Materials (discovered 2 exits: *Mat / [*Min]) -9/Materials -9/Storage History --------- Turn | Location | Event 25 | -11/Scrapyard | Discovered new exit (range 15) 68 | -11/Scrapyard | Entered Materials 297 | -10/Materials | Discovered new exit (range 15) 311 | -10/Materials | Build established: Mutant 471 | -10/Materials | Discovered new exit (range 15) 539 | -10/Materials | Entered another Materials area 539 | -9/Materials | Evolved 2 slots: Propulsion x1, Utility x1 801 | -9/Materials | Core integrity fell below 50% 822 | -9/Materials | Core integrity fell below 20% 826 | -9/Materials | Discovered new exit (range 15) 835 | -9/Materials | Entered Storage 858 | -9/Storage | Lost 11 parts (1p5n2u3w) 869 | -9/Storage | Destroyed by S-10 Pest with Light Assault Rifle Last Messages --------------- 00825_ K-01 Serf collects debris. 00826_ EXIT=FOUND 00827_ ECM Suite destroyed. LOCATION=UNKNOWN GOAL=ESCAPE 00836_ Triggered Shock Trap. 00836_ The floor emits a surge of raw power. 00836_ System corrupted (+1). 00837_ Triggered Shock Trap. 00837_ The floor emits a surge of raw power. 00837_ System corrupted (+1). 00839_ G/VW 0W#BBGUVLFS6X:RVJ:KWIZ2MYAZ8A1=NZ 00847_ Acquired Lgt. Ion Engine. 00859_ Connecting with Recycling Unit... 00859_ Current location identified: Storage >>Recycling(Report) Matter reserves: 0 Inventory: Maneuvering Thrusters (60%) 00867_ K-01 Serf collects debris. Map ----- +----------------------------------------------------+ | ????????????????????????????????? | | ????????????????????????????????? | | ????????????????????????????????? | | ????????????????????????????????? | | ????????????????????????????????? | | ????????????????????????????????? | | ??????????????????????? ??????? | | ?????????????????????? ??????? | | ?????????????????????? ??????? | | ??????????????????????# ??????? | | ??????????????????????# ??????? | | ??????????????????????# ??????? | | ??????????????????????# ??????? | | ??????????????????????# k #?????? | | ??????????????????????# #?????? | | ??????????????????????# #?????? | | ??????????????????????# #?????? | | ??????????????????????# #?????? | | ??????????????????????# +?????? | | ??????????????????????# #?????? | | ??????????????????????# #?????? | | ??????????????????????# #?????? | | ??????????????????????# #?????? | | ??????????????????????# #?????? | | ??????????????????????# #?????? | | ????????????????####??# @#?????? | | ????????????????#"""??# ####### | | ????????????????#"R"??# # # | | ?????????????####" "### # # | | ?????????????# # # # | | ?????????????# """ ! # # # | | ?????????????#! """ # # *** # | | ?????????????# """ # # * * # | | ?????????????# + + * # | | ?????????????# """ # # # | | ?????????????# """ # #""" # | | ?????????????# """ # #"Y # | | ?????????????# # #""" # | | ??????????????######### # # | | ??????????????????????########### | | ????????????????????????????????? | | ????????????????????????????????? | | ????????????????????????????????? | | ????????????????????????????????? | | ????????????????????????????????? | | ????????????????????????????????? | | ????????????????????????????????? | | ????????????????????????????????? | | ????????????????????????????????? | | | +----------------------------------------------------+ Best States ------------- Heat Dissipation 28 Energy Generation 10 Energy Capacity 250 Matter Stores 274 Matter Capacity 300 Sight Range 16 Terrain Scan Density 10 ECM Strength 1 Evasion (%) 63 Targeting Accuracy 5 Item Schematics ----------------- None Robot Schematics ------------------ None Fabricated ------------ Nothing Alien Tech Used ----------------- None Achievements -------------- None Challenges ------------ None Game ------ Seed PoweredScatterInverter Manual? 0 Play Time 00:18:45 Cumulative 50.1 hours Start 2022.02.19 @ 17:31:57 End 2022.02.22 @ 18:09:40 Sessions 3 Manual Loads 0 Difficulty Rogue Special Mode None Game No. 46 Rogue 46 Adventurer 0 Explorer 0 Win Type - Total 0 Types 0/0/0/0/0/0/0/0/0 Lore% 17 Gallery% 41 Achievement% 22 Wizard Run 0 Options --------- ASCII 1 Keyboard 1 Movement Arrows Keybinds 0 Fullscreen 1 Font 18/X11Bold Map View 76x50 Tactical HUD 1 Map Filters NONE Filters NONE Steam 1 RUN: aec5e1b5-bd2e-4dba-8c2d-2acd07cfa816